fUST/lending_fUST_20250303
["ID","MTS","AMOUNT","RATE_DAILY","PERIOD"]
[355136281,1740934245900,-1000.0,0.00021952,2]
[355136283,1740934245911,-1000.0,0.00021952,2]
[355136285,1740934245921,-500.0,0.00021952,2]
[355136286,1740934245931,-1000.0,0.00021952,2]
[355136288,1740934245941,-1000.0,0.00021952,2]
[355136289,1740934245951,-1000.0,0.00021952,2]
[355136291,1740934245961,-1000.0,0.00021952,2]
[355136292,1740934245972,-1000.0,0.00021952,2]
[355136294,1740934245986,-1000.0,0.00021952,2]
[355136295,1740934245996,-500.0,0.00021973,2]
[355136297,1740934246007,-500.0,0.00021973,2]
[355136298,1740934246018,-383.06529666,0.00021973,2]
[355136300,1740934246029,-250.20419285,0.00021973,2]
[355136302,1740934246040,-500.0,0.00021973,2]
[355136303,1740934246050,-500.0,0.00021973,2]
[355136305,1740934246067,-500.0,0.00021973,2]
[355136307,1740934246079,-500.0,0.00021973,2]
[355136309,1740934246089,-500.0,0.00021973,2]
[355136311,1740934246099,-160.40641223,0.00021973,2]
[355136313,1740934246109,-500.0,0.00021973,2]
[355136316,1740934246121,-500.0,0.00021973,2]
[355136318,1740934246131,-500.0,0.00021973,2]
[355136320,1740934246142,-500.0,0.00021973,2]
[355136322,1740934246153,-500.0,0.00021973,2]
[355136323,1740934246165,-500.0,0.00021973,2]
[355136325,1740934246175,-500.0,0.00021973,2]
[355136326,1740934246184,-500.0,0.00021973,2]
[355136328,1740934246194,-500.0,0.00021973,2]
[355136329,1740934246205,-500.0,0.00021973,2]
[355136331,1740934246216,-565.49129904,0.00021973,2]
[355136333,1740934246226,-185.0,0.00022,2]
[355136336,1740934246241,-195.96,0.00022,7]
[355136337,1740934246251,-205.96322889,0.00022,3]
[355136339,1740934246262,-160.0,0.00022018,2]
[355136341,1740934246271,-160.0,0.00022018,2]
[355136344,1740934246282,-151.0,0.000221,7]
[355136346,1740934246293,-19629.85965445,0.00022118,2]
[355136347,1740934246304,-160.0,0.00022118,2]
[355136350,1740934246314,-500.0,0.00022173,2]
[355136351,1740934246325,-500.0,0.00022191,2]
[355136354,1740934246336,-500.0,0.00022191,2]
[355136356,1740934246346,-500.0,0.00022191,2]
[355136358,1740934246358,-500.0,0.00022191,2]
[355136359,1740934246368,-500.0,0.00022191,2]
[355136361,1740934246379,-519.53789569,0.00022191,2]
[355136363,1740934246390,-500.0,0.00022191,2]
[355136364,1740934246401,-500.0,0.00022191,2]
[355136367,1740934246411,-512.93022185,0.00022191,2]
[355136369,1740934246421,-500.0,0.00022191,2]
[355136372,1740934246432,-500.0,0.00022191,2]
[355136373,1740934246444,-250.0,0.00022191,2]
[355136375,1740934246454,-188.45412673,0.00022191,2]
[355136377,1740934246464,-500.0,0.00022191,2]
[355136380,1740934246475,-215.39961076,0.00022191,2]
[355136382,1740934246491,-500.0,0.00022191,2]
[355136385,1740934246502,-500.0,0.00022191,2]
[355136387,1740934246513,-500.0,0.00022191,2]
[355136388,1740934246523,-548.26,0.00022191,2]
[355136389,1740934246534,-500.0,0.00022191,2]
[355136391,1740934246544,-507.52382425,0.00022191,2]
[355136394,1740934246556,-500.0,0.00022191,2]
[355136396,1740934246565,-500.0,0.00022191,2]
[355136399,1740934246575,-500.0,0.00022191,2]
[355136401,1740934246585,-500.0,0.00022191,2]
[355136404,1740934246595,-514.24415842,0.00022191,2]
[355136406,1740934246606,-500.0,0.00022191,2]
[355136409,1740934246618,-500.0,0.00022191,2]
[355136412,1740934246631,-500.0,0.00022191,2]
[355136414,1740934246642,-500.0,0.00022191,2]
[355136417,1740934246653,-500.0,0.00022191,2]
[355136419,1740934246664,-500.0,0.00022191,2]
[355136422,1740934246675,-500.0,0.00022191,2]
[355136425,1740934246690,-500.0,0.00022191,2]
[355136427,1740934246702,-500.0,0.00022191,2]
[355136430,1740934246714,-500.0,0.00022191,2]
[355136433,1740934246724,-500.0,0.00022191,2]
[355136436,1740934246741,-595.54711106,0.00022191,2]
[355136438,1740934246751,-500.0,0.00022191,2]
[355136441,1740934246761,-500.0,0.00022191,2]
[355136443,1740934246774,-500.0,0.00022191,2]
[355136446,1740934246784,-500.0,0.00022191,2]
[355136448,1740934246795,-500.0,0.00022191,2]
[355136451,1740934246806,-500.0,0.00022191,2]
[355136453,1740934246816,-500.0,0.00022191,2]
[355136456,1740934246827,-500.0,0.00022191,2]
[355136459,1740934246838,-500.0,0.00022191,2]
[355136461,1740934246848,-500.0,0.00022191,2]
[355136464,1740934246859,-500.0,0.00022191,2]
[355136466,1740934246870,-500.0,0.00022191,2]
[355136470,1740934246881,-500.0,0.00022191,2]
[355136472,1740934246891,-500.0,0.00022191,2]
[355136475,1740934246901,-500.0,0.00022191,2]
[355136478,1740934246913,-312.87707355,0.00022191,2]
[355136480,1740934246922,-500.0,0.00022191,2]
[355136483,1740934246934,-195.35970407,0.00022191,2]
[355136485,1740934246944,-500.0,0.00022191,2]
[355136488,1740934246955,-500.0,0.00022191,2]
[355136491,1740934246965,-500.0,0.00022191,2]
[355136494,1740934246975,-500.0,0.00022191,2]
[355136498,1740934246990,-500.0,0.00022191,2]
[355136501,1740934247000,-500.0,0.00022191,2]
[355136503,1740934247010,-500.0,0.00022191,2]
[355136505,1740934247021,-500.0,0.00022191,2]
[355136507,1740934247031,-500.0,0.00022191,2]
[355136509,1740934247042,-500.0,0.00022191,2]
[355136511,1740934247052,-500.0,0.00022191,2]
[355136512,1740934247063,-500.0,0.00022191,2]
[355136513,1740934247074,-500.0,0.00022191,2]
[355136515,1740934247085,-500.0,0.00022191,2]
[355136516,1740934247095,-500.0,0.00022191,2]
[355136518,1740934247105,-500.0,0.00022191,2]
[355136520,1740934247115,-500.0,0.00022191,2]
[355136522,1740934247124,-500.0,0.00022191,2]
[355136524,1740934247135,-500.0,0.00022191,2]
[355136527,1740934247146,-500.0,0.00022191,2]
[355136529,1740934247156,-500.0,0.00022191,2]
[355136531,1740934247167,-303.65024791,0.00022191,2]
[355136533,1740934247178,-500.0,0.00022191,2]
[355136535,1740934247188,-574.97,0.00022191,2]
[355136537,1740934247199,-500.0,0.00022191,2]
[355136539,1740934247210,-500.0,0.00022191,2]
[355136541,1740934247219,-500.0,0.00022191,2]
[355136543,1740934247229,-500.0,0.00022191,2]
[355136545,1740934247243,-500.0,0.00022191,2]
[355136547,1740934247254,-500.0,0.00022191,2]
[355136549,1740934247264,-500.0,0.00022191,2]
[355136552,1740934247275,-500.0,0.00022191,2]
[355136556,1740934247286,-500.0,0.00022191,2]
[355136558,1740934247296,-500.0,0.00022191,2]
[355136560,1740934247305,-500.0,0.00022191,2]
[355136563,1740934247316,-500.0,0.00022191,2]
[355136565,1740934247326,-500.0,0.00022191,2]
[355136568,1740934247336,-500.0,0.00022191,2]
[355136571,1740934247344,-500.0,0.00022191,2]
[355136574,1740934247353,-500.0,0.00022191,2]
[355136578,1740934247363,-500.0,0.00022191,2]
[355136583,1740934247374,-500.0,0.00022191,2]
[355136587,1740934247384,-500.0,0.00022191,2]
[355136591,1740934247395,-500.0,0.00022191,2]
[355136593,1740934247405,-500.0,0.00022191,2]
[355136598,1740934247415,-500.0,0.00022191,2]
[355136599,1740934247426,-500.0,0.00022191,2]
[355136602,1740934247436,-500.0,0.00022191,2]
[355136604,1740934247448,-500.0,0.00022191,2]
[355136605,1740934247458,-500.0,0.00022191,2]
[355136607,1740934247468,-306.7709541,0.00022191,2]
[355136609,1740934247479,-500.0,0.00022191,2]
[355136612,1740934247496,-500.0,0.00022191,2]
[355136614,1740934247506,-500.0,0.00022191,2]
[355136616,1740934247517,-500.0,0.00022191,2]
[355136618,1740934247527,-500.0,0.00022191,2]
[355136620,1740934247538,-500.0,0.00022191,2]
[355136622,1740934247548,-500.0,0.00022191,2]
[355136624,1740934247559,-500.0,0.00022191,2]
[355136626,1740934247569,-559.72,0.00022191,2]
[355136628,1740934247580,-500.0,0.00022191,2]
[355136630,1740934247591,-833.76,0.00022191,2]
[355136632,1740934247602,-500.0,0.00022191,2]
[355136634,1740934247612,-500.0,0.00022191,2]
[355136638,1740934247635,-500.0,0.00022191,2]
[355136640,1740934247646,-500.0,0.00022191,2]
[355136642,1740934247658,-500.0,0.00022191,2]
[355136644,1740934247667,-500.0,0.00022191,2]
[355136646,1740934247678,-500.0,0.00022191,2]
[355136648,1740934247692,-500.0,0.00022191,2]
[355136650,1740934247703,-500.0,0.00022191,2]
[355136652,1740934247713,-500.0,0.00022191,2]
[355136654,1740934247724,-500.0,0.00022191,2]
[355136656,1740934247739,-500.0,0.00022191,2]
[355136658,1740934247750,-500.0,0.00022191,2]
[355136660,1740934247760,-500.0,0.00022191,2]
[355136662,1740934247770,-500.0,0.00022191,2]
[355136664,1740934247783,-500.0,0.00022191,2]
[355136667,1740934247793,-500.0,0.00022191,2]
[355136669,1740934247804,-500.0,0.00022191,2]
[355136671,1740934247814,-500.0,0.00022191,2]
[355136673,1740934247825,-500.0,0.00022191,2]
[355136675,1740934247835,-505.40136399,0.00022191,2]
[355136677,1740934247846,-500.0,0.00022191,2]
[355136679,1740934247856,-500.0,0.00022191,2]
[355136681,1740934247866,-500.0,0.00022191,2]
[355136683,1740934247876,-500.0,0.00022191,2]
[355136685,1740934247886,-500.0,0.00022191,2]
[355136687,1740934247897,-4416.35,0.00022191,2]
[355136689,1740934247907,-500.61,0.00022191,2]
[355136691,1740934247918,-500.0,0.00022191,2]
[355136693,1740934247929,-500.0,0.00022191,2]
[355136695,1740934247939,-500.0,0.00022191,2]
[355136697,1740934247950,-533.76,0.00022191,2]
[355136699,1740934247960,-500.0,0.00022191,2]
[355136702,1740934247970,-500.0,0.00022191,2]
[355136704,1740934247980,-500.0,0.00022191,2]
[355136706,1740934247995,-508.91786221,0.00022191,2]
[355136708,1740934248005,-500.0,0.00022191,2]
[355136709,1740934248016,-500.0,0.00022191,2]
[355136710,1740934248026,-500.0,0.00022191,2]
[355136712,1740934248037,-500.0,0.00022191,2]
[355136714,1740934248047,-500.0,0.00022191,2]
[355136716,1740934248058,-245.16589319,0.00022191,2]
[355136718,1740934248069,-500.0,0.00022191,2]
[355136720,1740934248083,-500.0,0.00022191,2]
[355136722,1740934248094,-500.0,0.00022191,2]
[355136724,1740934248105,-500.0,0.00022191,2]
[355136726,1740934248116,-500.0,0.00022191,2]
[355136728,1740934248127,-500.0,0.00022191,2]
[355136730,1740934248138,-500.0,0.00022191,2]
[355136732,1740934248149,-500.0,0.00022191,2]
[355136734,1740934248159,-500.0,0.00022191,2]
[355136736,1740934248170,-500.0,0.00022191,2]
[355136738,1740934248181,-500.0,0.00022191,2]
[355136740,1740934248192,-500.0,0.00022191,2]
[355136742,1740934248204,-500.0,0.00022191,2]
[355136744,1740934248216,-500.0,0.00022191,2]
[355136746,1740934248228,-500.0,0.00022191,2]
[355136748,1740934248243,-500.0,0.00022191,2]
[355136750,1740934248256,-500.0,0.00022191,2]
[355136752,1740934248269,-500.0,0.00022191,2]
[355136754,1740934248280,-500.0,0.00022191,2]
[355136756,1740934248291,-500.0,0.00022191,2]
[355136758,1740934248302,-500.0,0.00022191,2]
[355136760,1740934248313,-500.0,0.00022191,2]
[355136762,1740934248324,-500.0,0.00022191,2]
[355136764,1740934248334,-609.38,0.00022191,2]
[355136766,1740934248345,-500.0,0.00022191,2]
[355136768,1740934248356,-500.0,0.00022191,2]
[355136770,1740934248365,-500.0,0.00022191,2]
[355136772,1740934248374,-418.00805935,0.00022191,2]
[355136774,1740934248384,-500.0,0.00022191,2]
[355136776,1740934248395,-500.0,0.00022191,2]
[355136778,1740934248406,-500.0,0.00022191,2]
[355136780,1740934248416,-500.0,0.00022191,2]
[355136782,1740934248428,-500.0,0.00022191,2]
[355136784,1740934248439,-500.0,0.00022191,2]
[355136786,1740934248451,-500.0,0.00022191,2]
[355136788,1740934248462,-500.0,0.00022191,2]
[355136795,1740934248548,-500.0,0.00022191,2]
[355136797,1740934248558,-500.0,0.00022191,2]
[355136799,1740934248569,-500.0,0.00022191,2]
[355136801,1740934248584,-500.0,0.00022191,2]
[355136803,1740934248595,-500.0,0.00022191,2]
[355136805,1740934248605,-500.0,0.00022191,2]
[355136807,1740934248616,-500.0,0.00022191,2]
[355136809,1740934248626,-500.0,0.00022191,2]
[355136811,1740934248636,-239.31,0.00022191,2]
[355136813,1740934248646,-2043.5,0.00022191,2]
[355136815,1740934248655,-500.0,0.00022191,2]
[355136816,1740934248665,-548.32,0.00022191,2]
[355136818,1740934248675,-500.0,0.00022191,2]
[355136820,1740934248686,-636.53935116,0.00022465,2]
[355136822,1740934248698,-263.68,0.00022465,2]
[355136824,1740934248709,-500.0,0.00022465,2]
[355136826,1740934248720,-514.42,0.00022465,2]
[355136828,1740934248733,-210.44890939,0.00022465,2]
[355136830,1740934248745,-585.23,0.00022465,2]
[355136832,1740934248756,-301.37,0.00022465,2]
[355136834,1740934248767,-500.0,0.00022465,2]
[355136836,1740934248778,-381.3,0.00022465,2]
[355136838,1740934248789,-501.45,0.00022465,2]
[355136840,1740934248800,-500.0,0.00022465,2]
[355136842,1740934248810,-513.21262946,0.00022465,2]
[355136844,1740934248821,-500.0,0.00022465,2]
[355136846,1740934248831,-500.0,0.00022465,2]
[355136848,1740934248842,-500.0,0.00022465,2]
[355136850,1740934248851,-417.56,0.00022465,2]
[355136851,1740934248862,-500.0,0.00022465,2]
[355136853,1740934248872,-500.0,0.00022465,2]
[355136855,1740934248883,-500.0,0.00022465,2]
[355136857,1740934248893,-500.0,0.00022465,2]
[355136859,1740934248904,-500.0,0.00022465,2]
[355136861,1740934248915,-500.0,0.00022465,2]
[355136863,1740934248925,-500.0,0.00022465,2]
[355136865,1740934248935,-500.0,0.00022465,2]
[355136867,1740934248944,-500.0,0.00022465,2]
[355136869,1740934248955,-500.0,0.00022465,2]
[355136870,1740934248966,-500.0,0.00022465,2]
[355136872,1740934248976,-500.0,0.00022465,2]
[355136874,1740934248990,-500.0,0.00022465,2]
[355136876,1740934249000,-555.35,0.00022465,2]
[355136878,1740934249010,-500.0,0.00022465,2]
[355136880,1740934249020,-305.9,0.00022465,2]
[355136882,1740934249031,-500.0,0.00022465,2]
[355136884,1740934249041,-558.99,0.00022465,2]
[355136886,1740934249051,-500.0,0.00022465,2]
[355136888,1740934249061,-500.0,0.00022465,2]
[355136889,1740934249071,-833.76,0.00022465,2]
[355136891,1740934249081,-393.8,0.00022465,2]
[355136893,1740934249090,-500.0,0.00022465,2]
[355136895,1740934249101,-236.8,0.00022465,2]
[355136897,1740934249110,-500.0,0.00022465,2]
[355136899,1740934249121,-500.0,0.00022465,2]
[355136901,1740934249132,-500.0,0.00022465,2]
[355136903,1740934249142,-500.0,0.00022465,2]
[355136905,1740934249152,-419.46,0.00022465,2]
[355136907,1740934249161,-500.0,0.00022465,2]
[355136909,1740934249172,-500.0,0.00022465,2]
[355136911,1740934249182,-500.0,0.00022465,2]
[355136912,1740934249191,-500.0,0.00022465,2]
[355136914,1740934249201,-500.0,0.00022465,2]
[355136916,1740934249210,-500.0,0.00022465,2]
[355136918,1740934249220,-500.0,0.00022465,2]
[355136920,1740934249229,-4416.35,0.00022465,2]
[355136922,1740934249243,-500.0,0.00022465,2]
[355136924,1740934249252,-598.06,0.00022465,2]
[355136926,1740934249262,-229.35920609,0.00022465,2]
[355136928,1740934249272,-500.0,0.00022465,2]
[355136929,1740934249282,-500.0,0.00022465,2]
[355136931,1740934249292,-500.0,0.00022465,2]
[355136933,1740934249303,-500.0,0.00022465,2]
[355136935,1740934249313,-500.0,0.00022465,2]
[355136937,1740934249323,-500.0,0.00022465,2]
[355136939,1740934249334,-500.0,0.00022465,2]
[355136941,1740934249344,-500.0,0.00022465,2]
[355136943,1740934249353,-500.0,0.00022465,2]
[355136945,1740934249363,-500.0,0.00022465,2]
[355136947,1740934249373,-500.0,0.00022465,2]
[355136949,1740934249383,-500.0,0.00022465,2]
[355136951,1740934249393,-500.0,0.00022465,2]
[355136953,1740934249404,-500.0,0.00022465,2]
[355136955,1740934249414,-500.0,0.00022465,2]
[355136957,1740934249424,-500.0,0.00022465,2]
[355136959,1740934249434,-500.0,0.00022465,2]
[355136961,1740934249444,-500.0,0.00022465,2]
[355136963,1740934249455,-500.0,0.00022465,2]
[355136965,1740934249466,-554.75320275,0.00022465,2]
[355136967,1740934249478,-612.57,0.00022465,2]
[355136969,1740934249494,-500.0,0.00022465,2]
[355136971,1740934249506,-526.65,0.00022465,2]
[355136973,1740934249518,-500.0,0.00022465,2]
[355136975,1740934249530,-500.0,0.00022465,2]
[355136977,1740934249541,-500.0,0.00022465,2]
[355136978,1740934249553,-174.39,0.00022465,2]
[355136980,1740934249564,-500.0,0.00022465,2]
[355136982,1740934249576,-500.0,0.00022465,2]
[355136984,1740934249588,-500.0,0.00022465,2]
[355136986,1740934249599,-500.0,0.00022465,2]
[355136988,1740934249609,-500.0,0.00022465,2]
[355136990,1740934249619,-500.0,0.00022465,2]
[355136992,1740934249629,-500.0,0.00022465,2]
[355136994,1740934249639,-500.0,0.00022465,2]
[355136996,1740934249649,-500.0,0.00022465,2]
[355136998,1740934249658,-500.0,0.00022465,2]
[355137000,1740934249668,-451.27,0.00022465,2]
[355137002,1740934249678,-500.0,0.00022465,2]
[355137003,1740934249690,-2043.5,0.00022465,2]
[355137005,1740934249700,-500.0,0.00022465,2]
[355137007,1740934249712,-548.32,0.00022465,2]
[355137009,1740934249724,-500.0,0.00022465,2]
[355137011,1740934249736,-349.76509673,0.00022739,2]
[355137013,1740934249748,-417.27,0.00022739,2]
[355137015,1740934249759,-500.0,0.00022739,2]
[355137017,1740934249769,-500.0,0.00022739,2]
[355137019,1740934249779,-500.0,0.00022739,2]
[355137021,1740934249789,-318.48279342,0.00022739,2]
[355137023,1740934249799,-500.0,0.00022739,2]
[355137024,1740934249809,-500.0,0.00022739,2]
[355137026,1740934249819,-500.0,0.00022739,2]
[355137028,1740934249829,-500.0,0.00022739,2]
[355137030,1740934249839,-500.0,0.00022739,2]
[355137032,1740934249849,-500.0,0.00022739,2]
[355137034,1740934249859,-500.0,0.00022739,2]
[355137036,1740934249869,-241.54,0.00022739,2]
[355137038,1740934249880,-833.76,0.00022739,2]
[355137040,1740934249890,-500.0,0.00022739,2]
[355137042,1740934249907,-328.92,0.00022739,2]
[355137044,1740934249918,-500.0,0.00022739,2]
[355137046,1740934249928,-332.16,0.00022739,2]
[355137048,1740934249938,-500.0,0.00022739,2]
[355137050,1740934249948,-357.59,0.00022739,2]
[355137052,1740934249959,-500.0,0.00022739,2]
[355137054,1740934249972,-500.0,0.00022739,2]
[355137056,1740934249983,-4416.35,0.00022739,2]
[355137058,1740934249996,-500.0,0.00022739,2]
[355137060,1740934250007,-312.01095324,0.00022739,2]
[355137062,1740934250017,-180.03,0.00022739,2]
[355137064,1740934250028,-500.0,0.00022739,2]
[355137066,1740934250039,-500.0,0.00022739,2]
[355137068,1740934250049,-500.0,0.00022739,2]
[355137070,1740934250059,-500.0,0.00022739,2]
[355137072,1740934250068,-500.0,0.00022739,2]
[355137074,1740934250079,-210.97818841,0.00022739,2]
[355137076,1740934250089,-292.38,0.00022739,2]
[355137078,1740934250099,-573.06,0.00022739,2]
[355137080,1740934250109,-500.0,0.00022739,2]
[355137082,1740934250119,-500.0,0.00022739,2]
[355137084,1740934250130,-500.0,0.00022739,2]
[355137085,1740934250141,-500.0,0.00022739,2]
[355137088,1740934250152,-500.0,0.00022739,2]
[355137090,1740934250162,-2043.5,0.00022739,2]
[355137091,1740934250172,-548.32,0.00022739,2]
[355137093,1740934250184,-151.0,0.000229,7]
[355137096,1740934250195,-253.74,0.00023013,2]
[355137098,1740934250206,-500.0,0.00023013,2]
[355137100,1740934250216,-500.0,0.00023013,2]
[355137102,1740934250226,-500.0,0.00023013,2]
[355137103,1740934250235,-500.0,0.00023013,2]
[355137104,1740934250249,-223.22,0.00023013,2]
[355137105,1740934250259,-500.0,0.00023013,2]
[355137106,1740934250269,-500.0,0.00023013,2]
[355137107,1740934250279,-833.76,0.00023013,2]
[355137108,1740934250289,-498.36,0.00023013,2]
[355137109,1740934250300,-331.48,0.00023013,2]
[355137110,1740934250309,-561.33,0.00023013,2]
[355137111,1740934250319,-500.0,0.00023013,2]
[355137112,1740934250330,-500.0,0.00023013,2]
[355137113,1740934250340,-4416.35,0.00023013,2]
[355137114,1740934250350,-500.0,0.00023013,2]
[355137115,1740934250360,-500.0,0.00023013,2]
[355137116,1740934250370,-500.0,0.00023013,2]
[355137117,1740934250380,-500.0,0.00023013,2]
[355137118,1740934250389,-499.28,0.00023013,2]
[355137119,1740934250399,-275.33,0.00023013,2]
[355137120,1740934250409,-500.0,0.00023013,2]
[355137121,1740934250419,-152.3,0.00023013,2]
[355137122,1740934250429,-227.77,0.00023013,2]
[355137123,1740934250439,-387.31,0.00023013,2]
[355137124,1740934250448,-340.72,0.00023013,2]
[355137125,1740934250458,-2043.5,0.00023013,2]
[355137126,1740934250467,-548.32,0.00023013,2]
[355137127,1740934250478,-185.0,0.00023014,2]
[355137129,1740934250493,-710.04516592,0.00023116,2]
[355137131,1740934250502,-2370.887416,0.00023237,2]
[355137133,1740934250512,-500.0,0.00023287,2]
[355137135,1740934250522,-500.0,0.00023287,2]
[355137137,1740934250532,-500.0,0.00023287,2]
[355137139,1740934250542,-500.0,0.00023287,2]
[355137141,1740934250551,-500.0,0.00023287,2]
[355137143,1740934250562,-500.0,0.00023287,2]
[355137145,1740934250572,-833.76,0.00023287,2]
[355137147,1740934250583,-500.0,0.00023287,2]
[355137149,1740934250593,-500.0,0.00023287,2]
[355137151,1740934250603,-4416.35,0.00023287,2]
[355137153,1740934250614,-500.0,0.00023287,2]
[355137155,1740934250624,-500.0,0.00023287,2]
[355137157,1740934250634,-500.0,0.00023287,2]
[355137159,1740934250644,-500.0,0.00023287,2]
[355137161,1740934250654,-2043.5,0.00023287,2]
[355137163,1740934250664,-548.32,0.00023287,2]
[355137165,1740934250674,-1152.0,0.00023438,2]
[355137167,1740934250687,-206.42,0.00023561,2]
[355137169,1740934250705,-500.0,0.00023561,2]
[355137171,1740934250720,-360.47,0.00023561,2]
[355137174,1740934250731,-521.1,0.00023561,2]
[355137176,1740934250746,-500.0,0.00023561,2]
[355137178,1740934250757,-500.0,0.00023561,2]
[355137180,1740934250767,-833.76,0.00023561,2]
[355137182,1740934250778,-201.26,0.00023561,2]
[355137183,1740934250788,-220.29,0.00023561,2]
[355137186,1740934250799,-4416.35,0.00023561,2]
[355137188,1740934250810,-432.32750819,0.00023561,2]
[355137189,1740934250820,-519.81,0.00023561,2]
[355137192,1740934250831,-500.0,0.00023561,2]
[355137193,1740934250840,-500.0,0.00023561,2]
[355137195,1740934250851,-2043.5,0.00023561,2]
[355137197,1740934250860,-548.32,0.00023561,2]
[355137199,1740934250870,-151.0,0.000237,10]
[355137201,1740934250880,-367.59,0.00023835,2]
[355137203,1740934250891,-500.0,0.00023835,2]
[355137205,1740934250901,-500.0,0.00023835,2]
[355137207,1740934250911,-833.76,0.00023835,2]
[355137209,1740934250921,-4416.35,0.00023835,2]
[355137211,1740934250932,-500.0,0.00023835,2]
[355137213,1740934250943,-170.82,0.00023835,2]
[355137215,1740934250953,-2043.5,0.00023835,2]
[355137217,1740934250964,-548.32,0.00023835,2]
[355137219,1740934250974,-4892.91203144,0.000239,2]
[355137221,1740934250985,-297.0,0.00024105,2]
[355137222,1740934251000,-150.0,0.00024105,2]
[355137224,1740934251011,-397.0,0.00024105,2]
[355137227,1740934251022,-500.0,0.00024109,2]
[355137228,1740934251032,-500.0,0.00024109,2]
[355137230,1740934251043,-833.76,0.00024109,2]
[355137232,1740934251053,-4416.35,0.00024109,2]
[355137234,1740934251064,-500.0,0.00024109,2]
[355137236,1740934251074,-500.0,0.00024109,2]
[355137238,1740934251085,-500.0,0.00024109,2]
[355137240,1740934251095,-500.0,0.00024109,2]
[355137242,1740934251105,-283.79,0.00024109,2]
[355137244,1740934251116,-2043.5,0.00024109,2]
[355137246,1740934251126,-548.32,0.00024109,2]
[355137248,1740934251135,-500.0,0.00024383,2]
[355137250,1740934251146,-500.0,0.00024383,2]
[355137252,1740934251156,-833.76,0.00024383,2]
[355137254,1740934251165,-4416.35,0.00024383,2]
[355137256,1740934251175,-500.0,0.00024383,2]
[355137258,1740934251186,-2043.5,0.00024383,2]
[355137260,1740934251196,-548.32,0.00024383,2]
[355137262,1740934251206,-222000.0,0.00024558,2]
[355137264,1740934251216,-500.0,0.00024657,2]
[355137266,1740934251226,-500.0,0.00024657,2]
[355137268,1740934251239,-833.76,0.00024657,2]
[355137270,1740934251249,-4416.35,0.00024657,2]
[355137272,1740934251259,-500.0,0.00024657,2]
[355137274,1740934251269,-2043.5,0.00024657,2]
[355137276,1740934251279,-772.38878774,0.00024658,2]
[355137278,1740934251290,-772.38878774,0.00024658,2]
[355137280,1740934251302,-772.38878774,0.00024658,2]
[355137282,1740934251312,-772.38878774,0.00024658,2]
[355137284,1740934251322,-772.38878774,0.00024658,2]
[355137286,1740934251333,-772.38878774,0.00024658,2]
[355137288,1740934251343,-772.38878774,0.00024658,2]